[Event "ETCC Open 2023"]
[Site "Budva"]
[Date "2023.11.13"]
[Round "3.14"]
[White "Moussard, Jules"]
[Black "Bartel, Mateusz"]
[Result "1/2-1/2"]
[ECO "C84"]
[WhiteElo "2639"]
[BlackElo "2651"]
[Annotator "TA"]
[PlyCount "60"]
[EventDate "2023.11.10"]
[EventType "team-tourn"]
[EventCountry "MNE"]
[SourceTitle "playchess.com"]
[Source "ChessBase"]
[SourceQuality "1"]
[WhiteTeam "France"]
[BlackTeam "Poland"]
[WhiteTeamCountry "FRA"]
[BlackTeamCountry "POL"]
[TimeControl "40/5400+30:1800+30"]

{[%evp 13,60,36,36,36,44,44,44,34,50,42,60,50,58,24,25,21,22,23,41,33,41,2,37,39,39,-23,-30,-31,-31,-37,-27,-28,-26,-18,0,0,0,0,0,0,0,0,0,0,0,0,0,0,0]} 1. e4 {[%emt 0:02:26]} e5 {[%emt 0:00:09]} 2. Nf3 {[%emt 0:00:46]} Nc6 {[%emt 0:00:06]} 3. Bb5 {[%emt 0:01:33]} a6 {[%emt 0:00:06]} 4. Ba4 {[%emt 0:00:08]} Nf6 {[%emt 0:00:03]} 5. O-O {[%emt 0:01:03]} Nxe4 {[%emt 0:02:17]} 6. d4 {[%emt 0:01:41]} Be7 {[%emt 0:00:16]} 7. Re1 {[%emt 0:05:39][%cal Bf1e1,Be1e4,Be4e5][%mdl 32]} b5 {[%emt 0:00:46]} 8. Rxe4 {[%emt 0:01:30] C84: Closed Ruy Lopez: Unusual White 6th moves.} d5 {[%emt 0:00:07]} 9. Nxe5 {[%emt 0:02:13]} Nxe5 {[%emt 0:00:59]} 10. Rxe5 {[%emt 0:00:12] And now Bb3 would win. White is slightly better.} bxa4 {[%emt 0:00:05]} 11. Nc3 {[%emt 0:11:03][%csl LRa4,LRd5]} O-O {[%emt 0:01:22][%cal Oa4a3]} 12. Rxd5 {[%emt 0:06:27]} Bd6 $1 {[%emt 0:00:04]} 13. Bf4 {[%emt 0:18:06]} ({Reject} 13. Nxa4 Bxh2+ 14. Kxh2 Qxd5 $15) (13. Bg5 $5 {[%cal Rg5d8]} Qe8 14. Bd2 $14) 13... Be6 $1 {[%emt 0:01:04] [#]} 14. Rxd6 $1 {[%emt 0:02:53]} cxd6 {[%emt 0:00:03]} 15. Nxa4 {[%emt 0:01:39] [#]} Bd7 $146 {[%emt 0:03:51]} ({Predecessor:} 15... Re8 16. Qd2 Rc8 17. b3 Bd7 18. Nb2 Qf6 19. c3 Re4 20. Nd3 Rce8 21. Be3 h5 {1-0 Suleymenov,A (2463)-Tin,J (2570) Asian Continental op 20th 2023 (4)}) 16. Nc3 {[%emt 0:03:22]} Re8 {[%emt 0:00:27]} 17. Qd3 {[%emt 0:10:20]} Qb6 {[%emt 0:11:05]} (17... Qe7 $5 {[%cal Ra8b8]}) 18. b3 {[%emt 0:03:15]} Bf5 {[%emt 0:10:17][%mdl 64] [#] Deflection} 19. Qxf5 {[%emt 0:01:08]} ({White should try} 19. Qd2 $1 $14) 19... Qxd4 $11 {[%emt 0:00:05]} 20. Qd3 {[%emt 0:00:26]} Qxf4 {[%emt 0:00:06]} 21. Nd5 {[%emt 0:01:32]} Qe5 {[%emt 0:02:02]} 22. Rd1 {[%emt 0:00:41] Threatens to win with Nc7.} Rac8 {[%emt 0:03:06][%cal Oc8c2] Inhibits Nc7.} 23. Ne3 {[%emt 0:03:57]} Rc3 {[%emt 0:14:48] The position is equal.} 24. Qxa6 {[%emt 0:07:26]} f5 {[%emt 0:09:41] Hoping for ...f4.} 25. g3 {[%emt 0:01:43]} (25. Qxd6 $2 {too greedy.} Qxd6 26. Rxd6 f4 $19) (25. Rxd6 Rxe3 26. g3 Re1+ 27. Kg2 Qe4+ 28. Kh3 Re2 29. Qc4+ Qxc4 30. bxc4 Rxf2 $19) 25... Rxe3 {[%emt 0:05:28]} 26. fxe3 {[%emt 0:00:05]} Qxe3+ {[%emt 0:00:05]} 27. Kg2 {[%emt 0:00:05]} Qe4+ {[%emt 0:00:03]} 28. Kg1 {[%emt 0:00:06]} Qe3+ {[%emt 0:00:19]} 29. Kg2 {[%emt 0:00:03]} Qe4+ {[%emt 0:02:11]} 30. Kg1 {[%emt 0:00:05] Qd3 would be deadly.} Qe3+ {[%emt 0:00:42] Weighted Error Value: White=0.08 (flawless) /Black=0.04 (flawless)} 1/2-1/2

[Event "ETCC Open 2023"]
[Site "Budva"]
[Date "2023.11.13"]
[Round "3.15"]
[White "Socko, Bartosz"]
[Black "Fressinet, Laurent"]
[Result "1-0"]
[ECO "C45"]
[WhiteElo "2545"]
[BlackElo "2640"]
[Annotator "TA"]
[PlyCount "81"]
[EventDate "2023.11.10"]
[EventType "team-tourn"]
[EventCountry "MNE"]
[SourceTitle "playchess.com"]
[Source "ChessBase"]
[SourceQuality "1"]
[WhiteTeam "Poland"]
[BlackTeam "France"]
[WhiteTeamCountry "POL"]
[BlackTeamCountry "FRA"]
[TimeControl "40/5400+30:1800+30"]

{[%evp 17,81,-3,13,-3,-12,-14,8,20,16,13,21,20,31,21,21,10,26,34,78,57,115,115,134,110,129,116,124,116,124,112,113,97,112,111,111,111,329,321,358,350,354,334,408,368,482,468,481,472,560,262,302,302,291,291,340,314,348,339,662,638,561,358,810,795,797,716]} 1. e4 {[%emt 0:00:03]} e5 {[%emt 0:00:09]} 2. Nf3 {[%emt 0:00:05]} Nc6 {[%emt 0:00:04]} 3. d4 {[%emt 0:00:06]} exd4 {[%emt 0:00:05]} 4. Nxd4 {[%emt 0:00:05]} Nf6 {[%emt 0:00:06]} 5. Nxc6 {[%emt 0:00:10]} bxc6 {[%emt 0:00:07]} 6. Bd3 {[%emt 0:00:05]} d5 {[%emt 0:01:23]} 7. exd5 {[%emt 0:00:10]} cxd5 {[%emt 0:00:07]} 8. O-O {[%emt 0:00:06]} Be7 {[%emt 0:00:24]} 9. c4 {[%emt 0:00:06]} O-O {[%emt 0:03:04] 9...0-0 scores better than 9...d4.} 10. Nc3 {[%emt 0:00:17] C45: Scotch Game.} d4 {[%emt 0:10:20]} 11. Ne4 {[%emt 0:00:27]} Bb7 {[%emt 0:03:17]} 12. Nxf6+ {[%emt 0:02:16] The position is equal.} Bxf6 {[%emt 0:00:41]} 13. b4 {[%emt 0:00:07]} Qd7 {[%emt 0:07:23]} 14. Bf4 {[%emt 0:04:26]} Rfe8 {[%emt 0:03:19] [#]} 15. Qd2 $5 $146 {[%emt 0:10:01][%mdl 8] An interesting novelty.} (15. Qh5 Be4 16. Rad1 Rac8 $15) ({Predecessor:} 15. Qc2 g6 16. Rae1 a6 17. a4 Qc6 18. f3 Qd7 19. b5 c5 20. Qd2 axb5 21. axb5 {½-½ Perez Ponsa,F (2527)-Pichot,A (2633) Aimchess Rapid Div 3 W 2023 (1.1)}) 15... c5 {[%emt 0:13:19]} 16. b5 {[%emt 0:04:33]} Be5 {[%emt 0:11:49]} 17. Rfe1 {[%emt 0:03:34]} Bc7 {[%emt 0:15:05]} 18. a4 {[%emt 0:09:34]} a5 {[%emt 0:00:24]} (18... Rad8 $14) 19. Bxc7 $16 {[%emt 0:05:58]} Qxc7 {[%emt 0:00:06]} 20. Re2 {[%emt 0:03:43]} h6 {[%emt 0:04:31]} 21. Rae1 {[%emt 0:00:16]} Kf8 {[%emt 0:00:37]} 22. h3 {[%emt 0:03:26]} Rad8 {[%emt 0:02:40]} 23. Bc2 $40 {[%emt 0:06:02][%cal Bd3c2,Bc2e4,Be4d5][%mdl 160] White attacks with force.} Bc8 {[%emt 0:09:46]} 24. Be4 {[%emt 0:04:39]} Bd7 {[%emt 0:01:11]} 25. Qd3 {[%emt 0:02:11]} Qd6 {[%emt 0:04:08]} 26. Bd5 {[%emt 0:02:54] [#] Qh7 is the strong threat.} Qg6 {[%emt 0:02:21] Inhibits Qh7. This move loses the game for Black.} (26... Rxe2 $16 27. Rxe2 (27. Qxe2 Be6 $14) 27... Re8) 27. Qd2 $18 {[%emt 0:13:25]} Rxe2 {[%emt 0:04:55]} 28. Rxe2 {[%emt 0:00:36]} (28. Qxe2 Re8 29. Qd2 Rxe1+ 30. Qxe1 Qb6 $16) 28... Qb6 {[%emt 0:01:40]} 29. Qf4 {[%emt 0:00:41][%csl Gd5][%cal Rf4f7] Prevents Bf5.} Qf6 {[%emt 0:00:48]} 30. Qc7 {[%emt 0:03:52][%csl LRa5,LRc5]} d3 {[%emt 0:00:12]} 31. Rd2 {[%emt 0:00:21]} ({Not} 31. Qxc5+ Kg8 32. Rd2 Re8 $18) 31... Bf5 {[%emt 0:00:43]} 32. b6 {[%emt 0:02:12]} ({Less strong is} 32. Qxa5 Re8 33. Rd1 Qd6 $18) ({Weaker is} 32. Qxc5+ Qe7 33. Qb6 Rc8 34. Qxa5 Be4 $18) 32... Rc8 {[%emt 0:00:18] Against b7} 33. Qf4 {[%emt 0:00:48]} (33. Qa7 $142 Be6 34. b7 Qa1+ 35. Kh2 Qe5+ 36. g3) 33... Qg5 {[%emt 0:01:17]} 34. Qxg5 {[%emt 0:02:05]} hxg5 {[%emt 0:00:01][%mdl 4096] Endgame KRB-KRB} 35. g4 {[%emt 0:01:06]} Bg6 {[%emt 0:00:20]} 36. Kf1 {[%emt 0:01:00]} Ke7 {[%emt 0:00:05]} 37. Rb2 {[%emt 0:00:15]} Kd6 $2 {[%emt 0:00:30] [#]} (37... f6 38. b7 Rb8) 38. b7 {[%emt 0:00:33]} Rb8 {[%emt 0:00:05]} 39. Rb6+ {[%emt 0:00:39]} Kd7 $2 {[%emt 0:01:24]} (39... Ke5 40. Ra6 Be4) 40. Ke1 {[%emt 0:03:15]} Re8+ {[%emt 0:01:01]} 41. Kd1 {[%emt 0:30:37] Weighted Error Value: White=0.24 (precise) /Black=0.51} 1-0

[Event "ETCC Open 2023"]
[Site "Budva"]
[Date "2023.11.13"]
[Round "3.16"]
[White "Lagarde, Maxime"]
[Black "Gumularz, Szymon"]
[Result "1-0"]
[ECO "B15"]
[WhiteElo "2629"]
[BlackElo "2580"]
[Annotator "TA"]
[PlyCount "61"]
[EventDate "2023.11.10"]
[EventType "team-tourn"]
[EventCountry "MNE"]
[SourceTitle "playchess.com"]
[Source "ChessBase"]
[SourceQuality "1"]
[WhiteTeam "France"]
[BlackTeam "Poland"]
[WhiteTeamCountry "FRA"]
[BlackTeamCountry "POL"]
[TimeControl "40/5400+30:1800+30"]

{[%evp 10,61,41,18,10,14,20,9,31,0,0,0,32,25,50,40,51,42,56,52,57,50,59,57,74,33,75,57,56,57,64,51,69,80,56,33,35,32,90,63,100,97,466,452,473,429,1989,1920,1795,1822,29973,12839,6295,3391]} 1. e4 {[%emt 0:00:07]} c6 {[%emt 0:00:10]} 2. d4 {[%emt 0:00:26]} d5 {[%emt 0:00:10]} 3. Nd2 {[%emt 0:00:10]} dxe4 {[%emt 0:00:24]} 4. Nxe4 {[%emt 0:00:06]} Nf6 {[%emt 0:00:23]} 5. Nxf6+ {[%emt 0:00:16]} exf6 {[%emt 0:00:08]} 6. Be3 {[%emt 0:00:03]} Bd6 {[%emt 0:03:34] B15: Caro-Kann: 3 Nc3: 3...g6 and 3...dxe4 4 Nxe4 Nf6 5 Nxf6+ exf6.} 7. Bd3 {[%emt 0:00:06]} Na6 {[%emt 0:00:10]} 8. a3 {[%emt 0:00:28] Prevents Nb4.} Nc7 {[%emt 0:01:10] The position is equal.} 9. Ne2 {[%emt 0:06:25]} O-O {[%emt 0:02:08]} 10. c4 {[%emt 0:03:26]} Bg4 {[%emt 0:11:36] [#]} 11. Qc2 $146 {[%emt 0:04:02]} ({Predecessor:} 11. O-O Ne6 12. f3 Bh5 13. Qc2 Bg6 14. f4 Bxd3 15. Qxd3 Re8 16. Rf3 Bc7 17. Rd1 {0-1 Hardaway,B (1907)-Lee,A (1967) Charlotte CCCSA op 2021 (5)}) 11... Bxe2 {[%emt 0:12:56]} 12. Bxe2 {[%emt 0:09:50]} ({Much worse is} 12. Bxh7+ Kh8 13. c5 (13. Kxe2 g6 $15) 13... Nd5 14. cxd6 (14. Kxe2 Bf4 $11) 14... Bb5 $15) 12... g6 {[%emt 0:00:43]} 13. O-O {[%emt 0:14:11]} f5 {[%emt 0:00:58]} 14. Rad1 {[%emt 0:00:45]} Re8 {[%emt 0:02:15]} 15. Bf3 {[%emt 0:01:31]} Qd7 {[%emt 0:15:23]} 16. b4 {[%emt 0:07:49][%cal Ob4b5]} a6 {[%emt 0:00:13]} 17. Qb3 {[%emt 0:02:16]} Bf8 {[%emt 0:06:41]} 18. a4 {[%emt 0:05:28]} Rac8 {[%emt 0:03:33]} 19. g3 {[%emt 0:06:05]} h5 {[%emt 0:02:19]} 20. h4 {[%emt 0:04:16]} Rcd8 {[%emt 0:09:27]} 21. d5 {[%emt 0:10:01]} cxd5 {[%emt 0:01:02]} 22. Bxd5 {[%emt 0:00:25]} Nxd5 {[%emt 0:01:12]} 23. Rxd5 {[%emt 0:00:08]} Qe6 {[%emt 0:01:11] Black is weak on the dark squares} (23... Qc6 $14) 24. Rfd1 $16 {[%emt 0:01:41]} Rxd5 {[%emt 0:00:36]} 25. cxd5 {[%emt 0:04:02][%cal Bc4d5,Bd5d6,Bd6d7][%mdl 32]} Qe4 {[%emt 0:07:14][%mdl 8192] Black cannot hold the game after this.} (25... Qd7 $16 {is more resistant.}) 26. d6 $18 {[%emt 0:08:08] [#] Hoping for d7.} Qf3 {[%emt 0:00:15][%cal Oe8e3] aiming for ...Rxe3!} 27. Rd4 {[%emt 0:01:52]} Bh6 {[%emt 0:15:14]} (27... Rd8 $142 28. d7 Be7) 28. d7 {[%emt 0:00:11]} Rd8 {[%emt 0:00:03]} 29. Rd3 {[%emt 0:01:05][%cal Bd4d3,Bd3e3,Be3e7][%mdl 32]} Bxe3 {[%emt 0:00:33]} 30. Rxe3 {[%emt 0:00:06] [#] Intending Re8+ and mate.} Qc6 {[%emt 0:00:09]} 31. Re7 {[%emt 0:00:20] Weighted Error Value: White=0.08 (flawless) /Black=0.68} 1-0

[Event "ETCC Open 2023"]
[Site "Budva"]
[Date "2023.11.13"]
[Round "3.17"]
[White "Rodshtein, Maxim"]
[Black "Van Foreest, Jorden"]
[Result "1/2-1/2"]
[ECO "D30"]
[WhiteElo "2582"]
[BlackElo "2700"]
[Annotator "TA"]
[PlyCount "88"]
[EventDate "2023.11.10"]
[EventType "team-tourn"]
[EventCountry "MNE"]
[SourceTitle "playchess.com"]
[Source "ChessBase"]
[SourceQuality "1"]
[WhiteTeam "Israel"]
[BlackTeam "Netherlands"]
[WhiteTeamCountry "ISR"]
[BlackTeamCountry "NED"]
[TimeControl "40/5400+30:1800+30"]

{[%evp 13,88,28,59,32,37,38,52,31,29,34,33,43,31,35,28,8,34,40,53,19,32,24,12,16,27,34,103,89,80,83,80,79,100,64,89,84,86,41,48,58,46,50,79,83,146,107,131,122,124,39,39,39,39,39,40,41,77,6,6,6,6,7,11,11,13,6,8,8,8,6,6,6,6,6,6,6,7]} 1. d4 {[%emt 0:00:04]} d5 {[%emt 0:00:09]} 2. c4 {[%emt 0:00:22]} e6 {[%emt 0:00:15]} 3. Nf3 {[%emt 0:02:02]} c5 {[%emt 0:01:03]} 4. cxd5 {[%emt 0:01:31]} exd5 {[%emt 0:00:08]} 5. g3 {[%emt 0:03:19]} Nc6 {[%emt 0:00:39]} 6. Bg2 {[%emt 0:00:28]} Nf6 {[%emt 0:00:12]} 7. O-O {[%emt 0:01:01]} h6 {[%emt 0:01:40]} 8. b3 {[%emt 0:09:17] D30: Queen's Gambit Declined: Systems without Nc3.} cxd4 {[%emt 0:00:20]} 9. Bb2 {[%emt 0:02:15]} Be7 {[%emt 0:00:19]} 10. Nxd4 {[%emt 0:00:58] White is slightly better.} O-O {[%emt 0:00:12]} 11. Nc3 {[%emt 0:00:53]} Re8 {[%emt 0:00:26]} 12. Rc1 {[%emt 0:01:54]} Bg4 {[%emt 0:01:49]} 13. h3 {[%emt 0:05:29]} Bh5 {[%emt 0:00:11] [#]} 14. Qd3 $146 {[%emt 0:19:57]} ({Predecessor:} 14. Nf5 Bf8 15. g4 Bg6 16. Nh4 Bh7 17. e3 a6 18. Nf3 Rc8 19. g5 hxg5 20. Nxg5 {½-½ Koustav,C (2431)-Manolache,M (2541) Titled Tuesday intern op 14th April blitz 2020 (3)}) 14... Qd7 {[%emt 0:09:40]} 15. Nxc6 {[%emt 0:06:40]} bxc6 {[%emt 0:00:18]} 16. e3 {[%emt 0:00:07]} Rac8 {[%emt 0:04:34]} 17. Na4 {[%emt 0:02:02]} Bg6 {[%emt 0:13:36]} 18. Qd4 {[%emt 0:00:32]} Bd6 {[%emt 0:00:49]} 19. Nc5 {[%emt 0:00:37]} Qf5 {[%emt 0:06:26] [#]} (19... Qc7 $14) 20. g4 $1 $16 {[%emt 0:22:08]} Qe5 {[%emt 0:01:11]} 21. Qxe5 {[%emt 0:01:09]} Bxe5 {[%emt 0:00:07]} 22. Bxe5 {[%emt 0:00:20]} Rxe5 {[%emt 0:00:04]} 23. Rc3 {[%emt 0:01:36]} Rce8 {[%emt 0:00:04]} 24. Rfc1 {[%emt 0:08:08]} h5 {[%emt 0:00:13]} 25. gxh5 {[%emt 0:01:44]} Rxh5 {[%emt 0:00:35][%cal Od5d4]} 26. Nd3 {[%emt 0:00:35]} Rg5 {[%emt 0:03:52][%cal Od5d4]} 27. Nf4 {[%emt 0:01:02]} Be4 {[%emt 0:00:58][%cal Od5d4]} 28. Rxc6 {[%emt 0:01:06]} Nh5 {[%emt 0:00:25]} ({Black should try} 28... d4) 29. Rc8 {[%emt 0:00:33]} Rxc8 {[%emt 0:00:54]} 30. Rxc8+ {[%emt 0:00:03]} Kh7 {[%emt 0:00:05] [#] ...Nxf4 is the strong threat.} 31. Kh2 {[%emt 0:03:33]} (31. Nxh5 $16 Rxg2+ 32. Kf1) 31... Nxf4 $14 {[%emt 0:00:06]} 32. Bxe4+ {[%emt 0:00:07]} dxe4 {[%emt 0:00:02]} 33. exf4 {[%emt 0:00:06][%mdl 4096] Endgame KR-KR} Rd5 {[%emt 0:00:05]} 34. Rc7 {[%emt 0:00:54][%csl LRa7,LRf7]} Rd2 {[%emt 0:00:48]} 35. Kg3 {[%emt 0:00:39]} ({Of course not} 35. Rxf7 Rxf2+ 36. Kg3 Rxa2 $11) (35. Rxa7 $16 {And now Kg3 would win.} Rxf2+ 36. Kg3) 35... Rxa2 $11 {[%emt 0:00:08] The position is equal.} 36. Rxf7 {[%emt 0:00:05]} a5 {[%emt 0:00:02]} 37. Rb7 {[%emt 0:02:13]} a4 {[%emt 0:01:32]} 38. bxa4 {[%emt 0:00:13]} Rxa4 {[%emt 0:00:07]} 39. Rb3 {[%emt 0:03:31]} g6 {[%emt 0:00:04]} 40. Rb7+ {[%emt 0:00:38]} Kg8 {[%emt 0:00:58]} 41. Rb2 {[%emt 0:15:28]} Kg7 {[%emt 0:02:46]} 42. Kg4 {[%emt 0:03:21]} Kf6 {[%emt 0:01:20]} 43. h4 {[%emt 0:00:35]} Ra1 {[%emt 0:02:07]} 44. Rb6+ {[%emt 0:00:51]} Kg7 {[%emt 0:00:56] Weighted Error Value: White=0.14 (very precise) /Black=0.11 (very precise)} 1/2-1/2

[Event "ETCC Open 2023"]
[Site "Budva"]
[Date "2023.11.13"]
[Round "3.18"]
[White "Warmerdam, Max"]
[Black "Kobo, Ori"]
[Result "1-0"]
[ECO "A13"]
[WhiteElo "2638"]
[BlackElo "2556"]
[Annotator "TA"]
[PlyCount "123"]
[EventDate "2023.11.10"]
[EventType "team-tourn"]
[EventCountry "MNE"]
[SourceTitle "playchess.com"]
[Source "ChessBase"]
[SourceQuality "1"]
[WhiteTeam "Netherlands"]
[BlackTeam "Israel"]
[WhiteTeamCountry "NED"]
[BlackTeamCountry "ISR"]
[TimeControl "40/5400+30:1800+30"]

{[%evp 10,123,31,18,16,0,25,12,16,14,14,18,3,22,28,31,18,27,25,25,19,17,17,22,28,28,29,17,22,16,15,0,0,0,11,0,14,0,0,0,0,0,78,0,0,0,25,47,43,29,41,51,93,35,128,132,253,252,350,337,321,325,339,163,363,337,560,522,560,560,546,539,530,514,773,770,751,464,489,402,392,372,388,297,1131,903,1226,1070,1990,1664,1669,1018,1095,939,1161,788,659,753,671,633,629,0,221,0,585,410,541,508,475,368,1555,1422,12837,12836,12847,12848]} 1. Nf3 {[%emt 0:00:04]} Nf6 {[%emt 0:00:27]} 2. c4 {[%emt 0:00:11]} e6 {[%emt 0:00:15]} 3. g3 {[%emt 0:00:58]} d5 {[%emt 0:00:13]} 4. Bg2 {[%emt 0:00:06]} d4 {[%emt 0:00:17]} 5. O-O {[%emt 0:00:50]} Nc6 {[%emt 0:00:06]} 6. d3 {[%emt 0:02:11]} Bc5 {[%emt 0:00:19] A13: English Opening: 1...e6.} 7. Nbd2 $1 {[%emt 0:00:05][%cal Bb1d2,Bd2b3,Bb3c5][%mdl 32] The main line 7.Nbd2 scores better than 7.Na3.} Be7 {[%emt 0:00:31]} 8. Nb3 {[%emt 0:00:57]} O-O {[%emt 0:00:23] The position is equal.} 9. e3 {[%emt 0:00:04]} dxe3 {[%emt 0:00:09]} 10. Bxe3 {[%emt 0:00:08]} Ng4 {[%emt 0:00:30]} 11. Bc5 {[%emt 0:00:06]} Bxc5 {[%emt 0:00:11]} (11... a5 {simplifies} 12. Bxe7 Qxe7 13. Nbd4 Nxd4 14. Nxd4 Nh6) 12. Nxc5 {[%emt 0:00:07]} b6 {[%emt 0:00:25]} 13. Nh4 {[%emt 0:06:27]} Nge5 {[%emt 0:00:08] [#]} 14. d4 {[%emt 0:00:18]} Nxd4 {[%emt 0:00:05][%cal Ob6c5]} (14... Qxd4 15. Qxd4) 15. Nb3 {[%emt 0:00:09]} Nxb3 {[%emt 0:00:10]} 16. axb3 {[%emt 0:00:05]} Rb8 $1 {[%emt 0:00:41] [#]} 17. Qe2 $146 {[%emt 0:03:48]} ({Predecessor:} 17. Rxa7 Bd7 18. Re1 Nc6 19. Ra1 Ne7 20. Nf3 Bc6 21. Ne5 Bxg2 22. Kxg2 Qxd1 23. Rexd1 Rfd8 24. Rxd8+ Rxd8 25. Ra7 Rc8 26. b4 f6 {½-½ Suleymanli,A (2560)-Nguyen,T (2645) Sharjah Masters 6th 2023 (6)}) 17... f6 {[%emt 0:00:38]} 18. Rxa7 {[%emt 0:05:50]} Qe7 {[%emt 0:01:42]} 19. Be4 {[%emt 0:04:17]} Rd8 {[%emt 0:00:19]} 20. Nf3 {[%emt 0:15:54] aiming for Nxe5.} Nf7 {[%emt 0:12:06]} 21. Rfa1 {[%emt 0:08:28][%cal Ob3b4]} Qd7 {[%emt 0:20:32]} 22. Bc2 {[%emt 0:04:56]} Nd6 {[%emt 0:15:11]} 23. Nd4 {[%emt 0:02:19]} e5 {[%emt 0:08:16]} 24. Nb5 {[%emt 0:01:29]} Nxb5 {[%emt 0:00:09]} 25. cxb5 {[%emt 0:00:08]} Qg4 {[%emt 0:03:24]} (25... Bb7 $11) 26. Qxg4 {[%emt 0:03:23]} (26. Qc4+ $16 Qxc4 27. bxc4) 26... Bxg4 $11 {[%emt 0:00:03]} 27. Rxc7 {[%emt 0:00:22] Threatens to win with Raa7.} Rbc8 {[%emt 0:05:11]} 28. Rxc8 {[%emt 0:02:17]} Rxc8 {[%emt 0:00:08][%mdl 4096] Endgame KRB-KRB} 29. Be4 {[%emt 0:00:29]} Rd8 {[%emt 0:16:15]} 30. f3 {[%emt 0:00:30]} Bh3 {[%emt 0:07:14]} 31. Kf2 {[%emt 0:02:11]} (31. Ra6 $16) 31... f5 {[%emt 0:05:06]} (31... Be6 $1 $14) 32. Bc6 $1 $16 {[%emt 0:00:54]} Rd2+ {[%emt 0:00:18]} (32... Kf7 $16 {was necessary.}) 33. Ke3 $18 {[%emt 0:00:04]} Rxb2 {[%emt 0:00:14]} 34. Bd5+ {[%emt 0:00:27]} Kf8 {[%emt 0:00:01] [#]} 35. Ra6 $1 {[%emt 0:01:31]} Rc2 {[%emt 0:04:58]} 36. Kd3 {[%emt 0:07:45]} (36. Rxb6 $142 Bf1 37. Rb8+ Ke7 38. b6) 36... Rxh2 $2 {[%emt 0:01:13]} (36... Rc8) 37. Rxb6 {[%emt 0:00:04]} Bf1+ $2 {[%emt 0:00:26]} (37... e4+ 38. fxe4 fxe4+ 39. Kxe4 (39. Bxe4 Rb2 $18) 39... Ke7) 38. Kc3 {[%emt 0:00:07]} Ke7 {[%emt 0:00:42]} 39. Re6+ {[%emt 0:07:06]} Kd7 {[%emt 0:00:05]} 40. b6 {[%emt 0:00:05][%cal Ob6b7] b7! would kill now.} (40. Rxe5 Bxb5 41. Bg8 (41. Rxf5 Kd6 $16) 41... Bc6 $16) 40... Ba6 {[%emt 0:00:55]} 41. Rxe5 {[%emt 0:38:39]} Kd6 {[%emt 0:05:43]} (41... Rh6 $142 42. Rxf5 Rxb6 43. Rf7+ Kd6) 42. f4 {[%emt 0:00:00]} (42. Rxf5 g6 43. Rf7 (43. Rg5 h6 $11) 43... Kxd5 $11) 42... Rh3 {[%emt 0:01:43]} 43. b7 {[%emt 0:00:00]} Rxg3+ {[%emt 0:00:18]} 44. Kc2 {[%emt 0:00:00]} Bxb7 {[%emt 0:00:47]} (44... Kc7 {leads to mate.} 45. Re7+ (45. Rxf5 $2 {too greedy.} Bd3+ 46. Kd1 Bxf5 $19) 45... Kd6 46. b8=Q+ (46. b8=B+ $2 {is the wrong capture.} Kxe7 47. Ba7 h5 $19) 46... Kxe7 47. Qc7+ Ke8 48. Bc6+ Kf8 49. Qd8+ Kf7 50. Be8+ Ke6 51. Qd7+ Kf6 52. Qf7#) 45. Bxb7 {[%emt 0:00:00] KRB-KR} g6 {[%emt 0:02:47]} 46. Re2 {[%emt 0:00:00]} Kc5 $2 {[%emt 0:03:11]} (46... Rh3 47. b4 Kd7) 47. Rh2 {[%emt 0:00:00]} Rg4 {[%emt 0:04:57]} 48. Rxh7 {[%emt 0:01:14]} Rxf4 {[%emt 0:00:09]} 49. Kc3 {[%emt 0:01:26] And now Rc7+ would win.} Rg4 {[%emt 0:03:07]} 50. Rc7+ {[%emt 0:01:40]} Kb6 {[%emt 0:00:45]} 51. Rf7 {[%emt 0:00:23] Black must now prevent Bd5.} Kc5 {[%emt 0:01:42] Inhibits Bd5.} 52. Bc8 {[%emt 0:02:22] Ba6 would be deadly.} Rg3+ {[%emt 0:03:07]} 53. Kb2 {[%emt 0:00:05]} Kb4 {[%emt 0:04:16]} 54. Rb7+ {[%emt 0:00:05]} Kc5 {[%emt 0:00:05]} 55. Rf7 $2 {[%emt 0:00:03]} (55. Rc7+ Kd6 56. Rf7) 55... Kb4 $1 {[%emt 0:00:16] [#]} 56. Rb7+ $2 {[%emt 0:00:05]} (56. Be6 $1) 56... Kc5 {[%emt 0:00:05]} 57. Rc7+ {[%emt 0:00:25]} Kb6 {[%emt 0:01:34]} 58. Rf7 {[%emt 0:00:07]} Kc5 {[%emt 0:01:14]} 59. Ka3 {[%emt 0:00:14]} Kb5 $2 {[%emt 0:00:40]} (59... Kd6 60. Kb2 Rg2+ 61. Kc3 Rg3+ 62. Kc4 Rg1) 60. Rf6 {[%emt 0:00:43] White is clearly winning.} Rg4 {[%emt 0:00:43]} 61. Bd7+ {[%emt 0:00:09]} Ka5 {[%emt 0:01:04]} 62. Be8 {[%emt 0:00:07] Weighted Error Value: White=0.23 (precise) /Black=0.28 (precise)} 1-0